Workbook

Sheet 4.1
C2: Moving and scrolling
B3: Home | C3: Move to the beginning of the row
B4: Ctrl + Home | C4: Move to the beginning of the worksheet (A1)
B5: Ctrl + End | C5: Move to the bottom-right corner of the used area of the worksheet
B6: Ctrl + arrow key | C6: Move to the edge of the current data region
B7: PgDn | C7: Move down one screen
B8: PgUp | C8: Move up one screen
B9: Alt + PgDn | C9: Move one screen to the right
B10: Alt + PgUp | C10: Move one screen to the left
C12: Entering data on a worksheet
B13: Shift + Enter | C13: Complete a cell entry and move up one cell
B14: Tab | C14: Complete a cell entry and move to the right cell
B15: Shift + Tab | C15: Complete a cell entry and move to the left cell
B16: Ctrl + Delete | C16: Delete text to the end of the line
B17: Shift + F2 | C17: Edit a cell comment
B18: Ctrl + D | C18: Fill down (a selected column of cells with the content of the first cell)
B19: Ctrl + R | C19: Fill to the right (a selected row of cells with the content of the first cell)
C21: Working in cells or the formula bar
B22: Ctrl+ ~ | C22: Display all formulas
B23: F2 | C23: Edit the active cell
B24: F3 | C24: Open the Paste Name window
B25: Shift + F3 | C25: Open the Insert Function (or Function Arguments) window
B26: F9 | C26: Calculate all sheets in all open workbooks
B27: Ctrl + Alt + F9 | C27: Calculate all worksheets in the active workbook
B28: Shift + F9 | C28: Calculate the active worksheet
B29: Ctrl + Shift + Enter | C29: Enter a formula as an array formula
B30: Ctrl + ;(semicolon) | C30: Enter the current date
B31: Ctrl + Shift + :(colon) | C31: Enter the current time
C33: Inserting, deleting, and copying selection
B34: Delete | C34: Clear the contents of the selection
B35: Ctrl + - (hyphen) | C35: Delete (dialog box)
B36: Ctrl + Z | C36: Undo the last action
B37: Ctrl + Shift + Plus sign | C37: Insert (dialog box)
C39: Selecting cells, columns, or rows
B40: Shift + arrow key | C40: Extend the selection by one cell
B41: Ctrl + Shift + arrow key | C41: Extend the selection to the last nonblank cell in the same column or row
B42: Ctrl + space bar | C42: Select the entire column
B43: Ctrl + A | C43: Select the entire worksheet
C45: Working with macros
B46: Alt + F8 | C46: Display the Macro dialog box
B47: Alt + F11 | C47: Display the Visual Basic Editor (VBE)
C48: Note: In most cases, these shortcuts are not case sensitive.

Sheet 4.3
A1: Control panel
F2: Cost quotes
A3: Choose building costs | F3: 78.5
A4: =INDEX(F3:F5,F6) -> 80 | F4: 80
F5: 83.75
F6: 2
A8: Sale multiple
A9: 12
A12: NPV
A13: =B43 -> 11472032.03
A17: Office Building
A19: Parameters | B19: Rate of increase | C19: 2002 | D19: 2003 | E19: 2004 | F19: 2005 | G19: 2006
A20: Building cost per sq ft | C20: =A4 -> 80
A21: Size of building | C21: 180000
A22: Rent per sq ft | B22: 0.05 | C22: 15 | D22: =C22*(1+$B$22) -> 15.75 | E22: =D22*(1+$B$22) -> 16.5375 | F22: =E22*(1+$B$22) -> 17.364375 | G22: =F22*(1+$B$22) -> 18.23259375
A23: Operating expense per sq ft | B23: 0.06 | C23: 1.2 | D23: =C23*(1+$B$23) -> 1.272 | E23: =D23*(1+$B$23) -> 1.34832 | F23: =E23*(1+$B$23) -> 1.4292192 | G23: =F23*(1+$B$23) -> 1.514972352
A24: Vacancy rate | B24: -0.04 | C24: 0.3 | D24: =C24+$B$24 -> 0.26 | E24: =D24+$B$24 -> 0.22 | F24: =E24+$B$24 -> 0.18 | G24: =F24+$B$24 -> 0.14
A25: Percent financed | C25: 0.85
A26: Mortgage rate | C26: 0.12
A27: Sale multiple | C27: =A9 -> 12
A28: Cost of capital | C28: 0.1
C30: 2002 | D30: 2003 | E30: 2004 | F30: 2005 | G30: 2006
A31: Cash Flow
B32: Gross income | C32: =$C$21*C22*(1-C24) -> 1890000 | D32: =$C$21*D22*(1-D24) -> 2097900 | E32: =$C$21*E22*(1-E24) -> 2321865 | F32: =$C$21*F22*(1-F24) -> 2562981.75 | G32: =$C$21*G22*(1-G24) -> 2822405.513
B33: Operating expense | C33: =$C$21*C23 -> 216000 | D33: =$C$21*D23 -> 228960 | E33: =$C$21*E23 -> 242697.6 | F33: =$C$21*F23 -> 257259.456 | G33: =$C$21*G23 -> 272695.0234
B34: Net operating income | C34: =C32-C33 -> 1674000 | D34: =D32-D33 -> 1868940 | E34: =E32-E33 -> 2079167.4 | F34: =F32-F33 -> 2305722.294 | G34: =G32-G33 -> 2549710.489
B35: Interest cost | C35: =-12*ISPMT($C$26/12,1,360,$C$25*$C$20*$C$21) -> 1464720 | D35: =-12*ISPMT($C$26/12,1,360,$C$25*$C$20*$C$21) -> 1464720 | E35: =-12*ISPMT($C$26/12,1,360,$C$25*$C$20*$C$21) -> 1464720 | F35: =-12*ISPMT($C$26/12,1,360,$C$25*$C$20*$C$21) -> 1464720 | G35: =-12*ISPMT($C$26/12,1,360,$C$25*$C$20*$C$21) -> 1464720
B36: Before-tax cash flow | C36: =C34-C35 -> 209280 | D36: =D34-D35 -> 404220 | E36: =E34-E35 -> 614447.4 | F36: =F34-F35 -> 841002.294 | G36: =G34-G35 -> 1084990.489
B38: Down payment (at time 0) | C38: =(1-C25)*C20*C21 -> 2160000
B39: Sale price | G39: =C27*G34 -> 30596525.87
B40: Mortgage cost | G40: =C25*C20*C21 -> 12240000
B41: End of year cash flows | C41: =C36 -> 209280 | D41: =D36 -> 404220 | E41: =E36 -> 614447.4 | F41: =F36 -> 841002.294 | G41: =G36+G39-G40 -> 19441516.36
A43: NPV | B43: =NPV(C28,C41:G41)-C38 -> 11472032.03

Sheet 4.4
A1: Office Building
A3: Parameters | B3: Rate of increase | C3: 2002 | D3: 2003 | E3: 2004 | F3: 2005 | G3: 2006
A4: Building cost per sq ft | C4: 80
A5: Size of building | C5: 180000
A6: Rent per sq ft | B6: 0.05 | C6: 15 | D6: =C6*(1+$B$6) -> 15.75 | E6: =D6*(1+$B$6) -> 16.5375 | F6: =E6*(1+$B$6) -> 17.364375 | G6: =F6*(1+$B$6) -> 18.23259375
A7: Operating expense per sq ft | B7: 0.06 | C7: 1.2 | D7: =C7*(1+$B$7) -> 1.272 | E7: =D7*(1+$B$7) -> 1.34832 | F7: =E7*(1+$B$7) -> 1.4292192 | G7: =F7*(1+$B$7) -> 1.514972352
A8: Vacancy rate | B8: -0.04 | C8: 0.3 | D8: =C8+$B$8 -> 0.26 | E8: =D8+$B$8 -> 0.22 | F8: =E8+$B$8 -> 0.18 | G8: =F8+$B$8 -> 0.14
A9: Percent financed | C9: 0.85
A10: Mortgage rate | C10: 0.12
A11: Sale multiple | C11: 12
A12: Cost of capital | C12: 0.1
C14: 2002 | D14: 2003 | E14: 2004 | F14: 2005 | G14: 2006
A15: Cash Flow
B16: Gross income | C16: =$C$5*C6*(1-C8) -> 1890000 | D16: =$C$5*D6*(1-D8) -> 2097900 | E16: =$C$5*E6*(1-E8) -> 2321865 | F16: =$C$5*F6*(1-F8) -> 2562981.75 | G16: =$C$5*G6*(1-G8) -> 2822405.513
B17: Operating expense | C17: =$C$5*C7 -> 216000 | D17: =$C$5*D7 -> 228960 | E17: =$C$5*E7 -> 242697.6 | F17: =$C$5*F7 -> 257259.456 | G17: =$C$5*G7 -> 272695.0234
B18: Net operating income | C18: =C16-C17 -> 1674000 | D18: =D16-D17 -> 1868940 | E18: =E16-E17 -> 2079167.4 | F18: =F16-F17 -> 2305722.294 | G18: =G16-G17 -> 2549710.489
B19: Interest cost | C19: =-12*ISPMT($C$10/12,1,360,$C$9*$C$4*$C$5) -> 1464720 | D19: =-12*ISPMT($C$10/12,1,360,$C$9*$C$4*$C$5) -> 1464720 | E19: =-12*ISPMT($C$10/12,1,360,$C$9*$C$4*$C$5) -> 1464720 | F19: =-12*ISPMT($C$10/12,1,360,$C$9*$C$4*$C$5) -> 1464720 | G19: =-12*ISPMT($C$10/12,1,360,$C$9*$C$4*$C$5) -> 1464720
B20: Before-tax cash flow | C20: =C18-C19 -> 209280 | D20: =D18-D19 -> 404220 | E20: =E18-E19 -> 614447.4 | F20: =F18-F19 -> 841002.294 | G20: =G18-G19 -> 1084990.489
B22: Down payment (at time 0) | C22: =(1-C9)*C4*C5 -> 2160000
B23: Sale price | G23: =C11*G18 -> 30596525.87
B24: Mortgage cost | G24: =C9*C4*C5 -> 12240000
B25: End of year cash flows | C25: =C20 -> 209280 | D25: =D20 -> 404220 | E25: =E20 -> 614447.4 | F25: =F20 -> 841002.294 | G25: =G20+G23-G24 -> 19441516.36
A27: NPV | B27: =NPV(C12,C25:G25)-C22 -> 11472032.03

Sheet 4.6
A1: Office Building
A3: Parameters | B3: Rate of increase | C3: 2002 | D3: 2003 | E3: 2004 | F3: 2005 | G3: 2006
A4: Building cost per sq ft | C4: 80
A5: Size of building | C5: 180000
A6: Rent per sq ft | B6: 0.05 | C6: 15 | D6: =C6*(1+$B$6) -> 15.75 | E6: =D6*(1+$B$6) -> 16.5375 | F6: =E6*(1+$B$6) -> 17.364375 | G6: =F6*(1+$B$6) -> 18.23259375
A7: Operating expense per sq ft | B7: 0.06 | C7: 1.2 | D7: =C7*(1+$B$7) -> 1.272 | E7: =D7*(1+$B$7) -> 1.34832 | F7: =E7*(1+$B$7) -> 1.4292192 | G7: =F7*(1+$B$7) -> 1.514972352
A8: Vacancy rate | B8: -0.04 | C8: 0.3 | D8: =C8+$B$8 -> 0.26 | E8: =D8+$B$8 -> 0.22 | F8: =E8+$B$8 -> 0.18 | G8: =F8+$B$8 -> 0.14
A9: Percent financed | C9: 0.85
A10: Mortgage rate | C10: 0.12
A11: Sale multiple | C11: 12
A12: Cost of capital | C12: 0.1
C14: 2002 | D14: 2003 | E14: 2004 | F14: 2005 | G14: 2006
A15: Cash Flow
B16: Gross income | C16: =Size*Rent*(1-Vacancy) -> 1890000 | D16: =Size*D6*(1-D8) -> 2097900 | E16: =Size*E6*(1-E8) -> 2321865 | F16: =Size*F6*(1-F8) -> 2562981.75 | G16: =Size*G6*(1-G8) -> 2822405.513
B17: Operating expense | C17: =Size*Operating_expense -> 216000 | D17: =$C$5*D7 -> 228960 | E17: =$C$5*E7 -> 242697.6 | F17: =$C$5*F7 -> 257259.456 | G17: =$C$5*G7 -> 272695.0234
B18: Net operating income | C18: =C16-C17 -> 1674000 | D18: =D16-D17 -> 1868940 | E18: =E16-E17 -> 2079167.4 | F18: =F16-F17 -> 2305722.294 | G18: =G16-G17 -> 2549710.489
B19: Interest cost | C19: =-12*ISPMT(Mortgage_rate/12,1,360,Percent_financed*Building_cost*Size) -> 1464720 | D19: =-12*ISPMT(Mortgage_rate/12,1,360,Percent_financed*Building_cost*Size) -> 1464720 | E19: =-12*ISPMT(Mortgage_rate/12,1,360,Percent_financed*Building_cost*Size) -> 1464720 | F19: =-12*ISPMT(Mortgage_rate/12,1,360,Percent_financed*Building_cost*Size) -> 1464720 | G19: =-12*ISPMT(Mortgage_rate/12,1,360,Percent_financed*Building_cost*Size) -> 1464720
B20: Before-tax cash flow | C20: =C18-C19 -> 209280 | D20: =D18-D19 -> 404220 | E20: =E18-E19 -> 614447.4 | F20: =F18-F19 -> 841002.294 | G20: =G18-G19 -> 1084990.489
B22: Down payment (at time 0) | C22: =(1-Percent_financed)*Building_cost*Size -> 2160000
B23: Sale price | G23: =C11*G18 -> 30596525.87
B24: Mortgage cost | G24: =C9*C4*C5 -> 12240000
B25: End of year cash flows | C25: =C20 -> 209280 | D25: =D20 -> 404220 | E25: =E20 -> 614447.4 | F25: =F20 -> 841002.294 | G25: =G20+G23-G24 -> 19441516.36
A27: NPV | B27: =NPV(Cost_of_Capital,End_of_year_cash_flows)-Down_payment__at_time_0 -> 11472032.03
A30: Range Names | B30: Building_cost | C30: ='4.6'!$C$4
B31: Cost_of_Capital | C31: ='4.6'!$C$12
B32: Down_payment__at_time_0 | C32: ='4.6'!$C$22
B33: End_of_year_cash_flows | C33: ='4.6'!$C$25:$G$25
B34: Mortgage_rate | C34: ='4.6'!$C$10
B35: Operating_expense | C35: ='4.6'!$C$7
B36: Operating_expense_growth | C36: ='4.6'!$B$7
B37: Percent_financed | C37: ='4.6'!$C$9
B38: Rent | C38: ='4.6'!$C$6
B39: Rent_growth | C39: ='4.6'!$B$6
B40: Sale_multiple | C40: ='4.6'!$C$11
B41: Size | C41: ='4.6'!$C$5
B42: Vacancy | C42: ='4.6'!$C$8
B43: Vacancy_growth | C43: ='4.6'!$B$8

Sheet 4.7
A1: Mixed addressing
B3: start temp | C3: 50
B4: fridge temp | C4: 36
B6: k values | C6: 0.1
C7: 0.2
C8: 0.3
C9: 0.4
C10: 0.5
C12: Time | D12: 1 | E12: 2 | F12: 3 | G12: 4 | H12: 5 | I12: 6 | J12: 7 | K12: 8 | L12: 9 | M12: 10
B13: Case
B14: 1 | C14: =$C$3 -> 50 | D14: =C14-$C6*(C14-$C$4) -> 48.6 | E14: 47.34 | F14: 46.206 | G14: 45.1854 | H14: 44.26686 | I14: 43.440174 | J14: 42.6961566 | K14: 42.02654094 | L14: 41.42388685 | M14: 40.88149816
B15: 2 | C15: =$C$3 -> 50 | D15: 47.2 | E15: 44.96 | F15: 43.168 | G15: 41.7344 | H15: 40.58752 | I15: 39.670016 | J15: 38.9360128 | K15: 38.34881024 | L15: 37.87904819 | M15: 37.50323855
B16: 3 | C16: 50 | D16: 45.8 | E16: 42.86 | F16: 40.802 | G16: 39.3614 | H16: 38.35298 | I16: 37.647086 | J16: 37.1529602 | K16: 36.80707214 | L16: 36.5649505 | M16: 36.39546535
B17: 4 | C17: 50 | D17: 44.4 | E17: 41.04 | F17: 39.024 | G17: 37.8144 | H17: 37.08864 | I17: 36.653184 | J17: 36.3919104 | K17: 36.23514624 | L17: 36.14108774 | M17: 36.08465265
B18: 5 | C18: 50 | D18: 43 | E18: 39.5 | F18: 37.75 | G18: 36.875 | H18: 36.4375 | I18: 36.21875 | J18: 36.109375 | K18: 36.0546875 | L18: 36.02734375 | M18: 36.01367188

Sheet 4.8
A1: Inputs
B2: IShare | C2: 0.05
B3: Change_year | C3: 2005
B4: Years_growth | C4: 3
B5: Fshare | C5: 0.15
B7: Year | C7: 2000 | D7: 2001 | E7: 2002 | F7: 2003 | G7: 2004 | H7: 2005 | I7: 2006 | J7: 2007 | K7: 2008 | L7: 2009 | M7: 2010
B8: Share | C8: =IF(C7<Change_year,IShare,IF(C7>Change_year+Years_growth,Fshare,(IShare+(C7-Change_year)*(Fshare-IShare)/Years_growth))) -> 0.05 | D8: 0.05 | E8: 0.05 | F8: 0.05 | G8: 0.05 | H8: 0.05 | I8: 0.08333333333 | J8: 0.1166666667 | K8: 0.15 | L8: 0.15 | M8: 0.15

Sheet 4.9
A1: Cumulative capacity
A2: JG/SP/KB
A3: 2010-02-07
B5: Plant | C5: Capacity | D5: Cost | F5: Ranked | G5: Match | H5: Incremental Capacity | I5: Cumulative capacity
B6: 1 | C6: 600 | D6: 15 | F6: =SMALL($D$6:$D$55,B6) -> 0.4999999 | G6: =MATCH(F6,$D$6:$D$55,0) -> 15 | H6: =INDEX($C$6:$C$55,MATCH(F6,$D$6:$D$55,0)) -> 200 | I6: =H6 -> 200
B7: 2 | C7: 700 | D7: 18 | F7: =SMALL($D$6:$D$55,B7) -> 0.51 | G7: =MATCH(F7,$D$6:$D$55,0) -> 16 | H7: =INDEX($C$6:$C$55,MATCH(F7,$D$6:$D$55,0)) -> 300 | I7: =I6+H7 -> 500
B8: 3 | C8: 750 | D8: 20 | F8: 0.7 | G8: 17 | H8: 400 | I8: =I7+H8 -> 900
B9: 4 | C9: 800 | D9: 25 | F9: 1 | G9: 20 | H9: 350 | I9: 1250
B10: 5 | C10: 1000 | D10: 28 | F10: 2 | G10: 18 | H10: 500 | I10: 1750
B11: 6 | C11: 800 | D11: 45.12548571 | F11: 2.1 | G11: =MATCH(F11,$D$6:$D$55,0) -> 19 | H11: 450 | I11: 2200
B12: 7 | C12: 600 | D12: 46.53565714 | F12: 7 | G12: 46 | H12: 1200 | I12: 3400
B13: 8 | C13: 500 | D13: 42.30514286 | F13: 7.5 | G13: 47 | H13: 1500 | I13: 4900
B14: 9 | C14: 650 | D14: 43.71531429 | F14: 9 | G14: 48 | H14: 1100 | I14: 6000
B15: 10 | C15: 700 | D15: 49.4 | F15: 9.5 | G15: 49 | H15: 1400 | I15: 7400
B16: 11 | C16: 600 | D16: 40.89497143 | F16: 11 | G16: 50 | H16: 1500 | I16: 8900
B17: 12 | C17: 650 | D17: 52.17634286 | F17: 15 | G17: 1 | H17: 600 | I17: 9500
B18: 13 | C18: 400 | D18: 52.88142857 | F18: 18 | G18: 2 | H18: 700 | I18: 10200
B19: 14 | C19: 500 | D19: 53.58651429 | F19: 20 | G19: 3 | H19: 750 | I19: 10950
B20: 15 | C20: 200 | D20: 0.4999999 | F20: 25 | G20: 4 | H20: 800 | I20: 11750
B21: 16 | C21: 300 | D21: 0.51 | F21: 28 | G21: =MATCH(F21,$D$6:$D$55,0) -> 5 | H21: 1000 | I21: 12750
B22: 17 | C22: 400 | D22: 0.7 | F22: 40.89497143 | G22: 11 | H22: 600 | I22: 13350
B23: 18 | C23: 500 | D23: 2 | F23: 42.30514286 | G23: 8 | H23: 500 | I23: 13850
B24: 19 | C24: 450 | D24: 2.1 | F24: 43.71531429 | G24: 9 | H24: 650 | I24: 14500
B25: 20 | C25: 350 | D25: 1 | F25: 45.12548571 | G25: 6 | H25: 800 | I25: 15300
B26: 21 | C26: 700 | D26: 66.0822 | F26: 46.0656 | G26: 26 | H26: 250 | I26: 15550
B27: 22 | C27: 350 | D27: 67.179 | F27: 46.53565714 | G27: 7 | H27: 600 | I27: 16150
B28: 23 | C28: 600 | D28: 65.808 | F28: 48.2592 | G28: 42 | H28: 250 | I28: 16400
B29: 24 | C29: 100 | D29: 76.776 | F29: 49.4 | G29: 10 | H29: 700 | I29: 17100
B30: 25 | C30: 250 | D30: 67.7274 | F30: 49.5 | G30: 35 | H30: 250 | I30: 17350
B31: 26 | C31: 250 | D31: 46.0656 | F31: 52.17634286 | G31: 12 | H31: 650 | I31: 18000
B32: 27 | C32: 100 | D32: 69.6468 | F32: 52.6464 | G32: 38 | H32: 250 | I32: 18250
B33: 28 | C33: 300 | D33: 59.2272 | F33: 52.88142857 | G33: 13 | H33: 400 | I33: 18650
B34: 29 | C34: 225 | D34: 60.324 | F34: 53.58651429 | G34: 14 | H34: 500 | I34: 19150
B35: 30 | C35: 700 | D35: 64.7112 | F35: 53.7432 | G35: 45 | H35: 250 | I35: 19400
B36: 31 | C36: 150 | D36: 68.2758 | F36: 57.0336 | G36: 33 | H36: 250 | I36: 19650
B37: 32 | C37: 650 | D37: 66.3564 | F37: 59.2272 | G37: 28 | H37: 300 | I37: 19950
B38: 33 | C38: 250 | D38: 57.0336 | F38: 60.324 | G38: 29 | H38: 225 | I38: 20175
B39: 34 | C39: 300 | D39: 67.4532 | F39: 64.7112 | G39: 30 | H39: 700 | I39: 20875
B40: 35 | C40: 250 | D40: 49.5 | F40: 65.808 | G40: 23 | H40: 600 | I40: 21475
B41: 36 | C41: 125 | D41: 69.0984 | F41: 66.0822 | G41: 21 | H41: 700 | I41: 22175
B42: 37 | C42: 200 | D42: 68.55 | F42: 66.3564 | G42: 32 | H42: 650 | I42: 22825
B43: 38 | C43: 250 | D43: 52.6464 | F43: 66.6306 | G43: 44 | H43: 450 | I43: 23275
B44: 39 | C44: 200 | D44: 68.0016 | F44: 66.9048 | G44: 43 | H44: 400 | I44: 23675
B45: 40 | C45: 250 | D45: 68.8242 | F45: 67.179 | G45: 22 | H45: 350 | I45: 24025
B46: 41 | C46: 100 | D46: 72.3888 | F46: 67.4532 | G46: 34 | H46: 300 | I46: 24325
B47: 42 | C47: 250 | D47: 48.2592 | F47: 67.7274 | G47: 25 | H47: 250 | I47: 24575
B48: 43 | C48: 400 | D48: 66.9048 | F48: 68.0016 | G48: 39 | H48: 200 | I48: 24775
B49: 44 | C49: 450 | D49: 66.6306 | F49: 68.2758 | G49: 31 | H49: 150 | I49: 24925
B50: 45 | C50: 250 | D50: 53.7432 | F50: 68.55 | G50: 37 | H50: 200 | I50: 25125
B51: 46 | C51: 1200 | D51: 7 | F51: 68.8242 | G51: 40 | H51: 250 | I51: 25375
B52: 47 | C52: 1500 | D52: 7.5 | F52: 69.0984 | G52: 36 | H52: 125 | I52: 25500
B53: 48 | C53: 1100 | D53: 9 | F53: 69.6468 | G53: 27 | H53: 100 | I53: 25600
B54: 49 | C54: 1400 | D54: 9.5 | F54: 72.3888 | G54: 41 | H54: 100 | I54: 25700
B55: 50 | C55: 1500 | D55: 11 | F55: 76.776 | G55: 24 | H55: 100 | I55: 25800

Sheet 4.10
A1: Apple Computer
A3: Date | B3: Return | C3: Return + 1 | D3: Cumulative Return
A4: 20041201 | B4: 0.011037 | C4: =B4+1 -> 1.011037 | D4: =PRODUCT($C$4:$C4)-1 -> 0.011037
A5: 20041202 | B5: -0.038059 | C5: =B5+1 -> 0.961941 | D5: =PRODUCT($C$4:$C5)-1 -> -0.02744205718
A6: 20041203 | B6: -0.038798 | C6: 0.961202 | D6: =PRODUCT($C$4:$C6)-1 -> -0.06517536025
A7: 20041206 | B7: 0.049458 | C7: 1.049458 | D7: =PRODUCT($C$4:$C7)-1 -> -0.01894080322
A8: 20041207 | B8: -0.043934 | C8: 0.956066 | D8: =PRODUCT($C$4:$C8)-1 -> -0.06204265797
A9: 20041208 | B9: 0.006201 | C9: 1.006201 | D9: =PRODUCT($C$4:$C9)-1 -> -0.05622638449
A10: 20041209 | B10: 0.01122 | C10: 1.01122 | D10: =PRODUCT($C$4:$C10)-1 -> -0.04563724452
A11: 20041210 | B11: 0.018128 | C11: 1.018128 | D11: =PRODUCT($C$4:$C11)-1 -> -0.02833655649
A12: 20041213 | B12: -0.003684 | C12: 0.996316 | D12: =PRODUCT($C$4:$C12)-1 -> -0.03191616462
A13: 20041214 | B13: 0.005854 | C13: 1.005854 | D13: =PRODUCT($C$4:$C13)-1 -> -0.02624900185
A14: 20041215 | B14: -0.000459 | C14: 0.999541 | D14: =PRODUCT($C$4:$C14)-1 -> -0.02669595355
A15: 20041216 | B15: 0.020472 | C15: 1.020472 | D15: =PRODUCT($C$4:$C15)-1 -> -0.006770473115
A16: 20041217 | B16: -0.024116 | C16: 0.975884 | D16: =PRODUCT($C$4:$C16)-1 -> -0.03072319639
A17: 20041220 | B17: -0.034928 | C17: 0.965072 | D17: =PRODUCT($C$4:$C17)-1 -> -0.06457809658
A18: 20041221 | B18: 0.015466 | C18: 1.015466 | D18: =PRODUCT($C$4:$C18)-1 -> -0.05011086142
A19: 20041222 | B19: 0.000942 | C19: 1.000942 | D19: =PRODUCT($C$4:$C19)-1 -> -0.04921606585
A20: 20041223 | B20: 0.004078 | C20: 1.004078 | D20: =PRODUCT($C$4:$C20)-1 -> -0.04533876897
A21: 20041227 | B21: -0.013279 | C21: 0.986721 | D21: =PRODUCT($C$4:$C21)-1 -> -0.05801571546
A22: 20041228 | B22: 0.016149 | C22: 1.016149 | D22: =PRODUCT($C$4:$C22)-1 -> -0.04280361125
A23: 20041229 | B23: 0.004051 | C23: 1.004051 | D23: =PRODUCT($C$4:$C23)-1 -> -0.03892600868
A24: 20041230 | B24: 0.005587 | C24: 1.005587 | D24: =PRODUCT($C$4:$C24)-1 -> -0.03355648829
A25: 20041231 | B25: -0.006173 | C25: 0.993827 | D25: =PRODUCT($C$4:$C25)-1 -> -0.03952234408

Sheet 4.13
A1: Apple Computer
A3: Date | B3: Return
A4: 20041201 | B4: 0.011037
A5: 20041202 | B5: -0.038059
A6: 20041203 | B6: -0.038798
A7: 20041206 | B7: 0.049458
A8: 20041207 | B8: -0.043934
A9: 20041208 | B9: 0.006201
A10: 20041209 | B10: 0.01122
A11: 20041210 | B11: 0.018128
A12: 20041213 | B12: -0.003684
A13: 20041214 | B13: 0.005854
A14: 20041215 | B14: -0.000459
A15: 20041216 | B15: 0.020472
A16: 20041217 | B16: -0.024116
A17: 20041220 | B17: -0.034928
A18: 20041221 | B18: 0.015466
A19: 20041222 | B19: 0.000942
A20: 20041223 | B20: 0.004078
A21: 20041227 | B21: -0.013279
A22: 20041228 | B22: 0.016149
A23: 20041229 | B23: 0.004051
A24: 20041230 | B24: 0.005587
A25: 20041231 | B25: -0.006173

Sheet 4.14
A1: Apple Computer
A3: Date | B3: Return
A4: 20041201 | B4: 0.011037
A5: 20041202 | B5: -0.038059
A6: 20041203 | B6: -0.038798
A7: 20041206 | B7: 0.049458
A8: 20041207 | B8: -0.043934
A9: 20041208 | B9: 0.006201
A10: 20041209 | B10: 0.01122
A11: 20041210 | B11: 0.018128
A12: 20041213 | B12: -0.003684
A13: 20041214 | B13: 0.005854
A14: 20041215 | B14: -0.000459
A15: 20041216 | B15: 0.020472
A16: 20041217 | B16: -0.024116
A17: 20041220 | B17: -0.034928
A18: 20041221 | B18: 0.015466
A19: 20041222 | B19: 0.000942
A20: 20041223 | B20: 0.004078
A21: 20041227 | B21: -0.013279
A22: 20041228 | B22: 0.016149
A23: 20041229 | B23: 0.004051
A24: 20041230 | B24: 0.005587
A25: 20041231 | B25: -0.006173

Sheet 4.15
A1: Apple Computer
A3: Date | B3: Return
A4: 20041201 | B4: 0.011037 | C4: =CumulativeReturn($B$4:$B4) -> 0.011037
A5: 20041202 | B5: -0.038059 | C5: =CumulativeReturn($B$4:$B5) -> -0.02744205718
A6: 20041203 | B6: -0.038798 | C6: =CumulativeReturn($B$4:$B6) -> -0.06517536025
A7: 20041206 | B7: 0.049458 | C7: =CumulativeReturn($B$4:$B7) -> -0.01894080322
A8: 20041207 | B8: -0.043934 | C8: =CumulativeReturn($B$4:$B8) -> -0.06204265797
A9: 20041208 | B9: 0.006201 | C9: =CumulativeReturn($B$4:$B9) -> -0.05622638449
A10: 20041209 | B10: 0.01122 | C10: =CumulativeReturn($B$4:$B10) -> -0.04563724452
A11: 20041210 | B11: 0.018128 | C11: =CumulativeReturn($B$4:$B11) -> -0.02833655649
A12: 20041213 | B12: -0.003684 | C12: =CumulativeReturn($B$4:$B12) -> -0.03191616462
A13: 20041214 | B13: 0.005854 | C13: =CumulativeReturn($B$4:$B13) -> -0.02624900185
A14: 20041215 | B14: -0.000459 | C14: =CumulativeReturn($B$4:$B14) -> -0.02669595355
A15: 20041216 | B15: 0.020472 | C15: =CumulativeReturn($B$4:$B15) -> -0.006770473115
A16: 20041217 | B16: -0.024116 | C16: =CumulativeReturn($B$4:$B16) -> -0.03072319639
A17: 20041220 | B17: -0.034928 | C17: =CumulativeReturn($B$4:$B17) -> -0.06457809658
A18: 20041221 | B18: 0.015466 | C18: =CumulativeReturn($B$4:$B18) -> -0.05011086142
A19: 20041222 | B19: 0.000942 | C19: =CumulativeReturn($B$4:$B19) -> -0.04921606585
A20: 20041223 | B20: 0.004078 | C20: =CumulativeReturn($B$4:$B20) -> -0.04533876897
A21: 20041227 | B21: -0.013279 | C21: =CumulativeReturn($B$4:$B21) -> -0.05801571546
A22: 20041228 | B22: 0.016149 | C22: =CumulativeReturn($B$4:$B22) -> -0.04280361125
A23: 20041229 | B23: 0.004051 | C23: =CumulativeReturn($B$4:$B23) -> -0.03892600868
A24: 20041230 | B24: 0.005587 | C24: =CumulativeReturn($B$4:$B24) -> -0.03355648829
A25: 20041231 | B25: -0.006173 | C25: =CumulativeReturn($B$4:$B25) -> -0.03952234408
